bitfinex/quotes_SOLUSD_20250902
["timestamp","ask_amount","ask_price","bid_price","bid_amount"]
[1756827015785,0.71,203.52,203.48,0.03]
[1756827015786,8.83583706,203.49,203.48,0.03]
[1756827016367,8.12583706,203.49,203.48,0.03]
[1756827016567,8.12583706,203.5,203.48,4.94443529]
[1756827016768,8.12583706,203.5,203.48,0.03]
[1756827017210,8.12583706,203.5,203.48,4.94447651]
[1756827017388,8.12583706,203.5,203.48,0.03]
[1756827017690,8.83583706,203.5,203.48,0.03]
[1756827017880,12.27846262,203.61,203.49,13.59559401]
[1756827018062,8.12583706,203.55,203.49,22.40143107]
[1756827018266,0.71,203.54,203.49,21.72143107]
[1756827018466,0.71,203.54,203.48,31.01040853]
[1756827018467,8.12583706,203.51,203.48,31.01040853]
[1756827018680,8.12583706,203.49,203.48,0.03]
[1756827018968,40.06,203.55,203.48,0.03]
[1756827019188,8.83583706,203.49,203.48,0.03]
[1756827019893,13.75008346,203.49,203.45,0.03]
[1756827020108,8.12583706,203.46,203.45,0.03]
[1756827020471,8.83583706,203.46,203.45,0.03]
[1756827021603,13.75080806,203.46,203.45,0.03]
[1756827021775,8.83583706,203.46,203.45,0.03]
[1756827022273,13.75080806,203.46,203.45,0.03]
[1756827023088,53.83080806,203.46,203.45,0.03]
[1756827023686,13.75080806,203.46,203.45,0.03]
[1756827023996,53.83080806,203.46,203.45,0.03]
[1756827024382,13.75080806,203.46,203.45,0.03]
[1756827024574,53.83080806,203.46,203.45,0.03]
[1756827024773,13.75080806,203.46,203.45,0.03]
[1756827024969,5.624971,203.46,203.45,0.03]
[1756827025178,53.83080806,203.46,203.45,0.03]
[1756827025377,13.75080806,203.46,203.45,0.03]
[1756827025694,53.83080806,203.46,203.45,0.03]
[1756827026482,54.25729277,203.46,203.45,0.03]
[1756827026690,26.0,203.44,203.43,0.03]
[1756827026999,74.20583706,203.44,203.43,0.03]
[1756827027175,74.91583706,203.44,203.43,0.03]
[1756827027374,83.46815883,203.44,203.42,29.20814017]
[1756827027587,14.17801758,203.43,203.42,29.20814017]
[1756827027808,13.75153287,203.43,203.42,29.20814017]
[1756827028183,53.83153287,203.43,203.42,29.20814017]
[1756827028808,13.75153287,203.43,203.42,29.20814017]
[1756827029012,4.91569581,203.43,203.42,29.20814017]
[1756827029183,48.20583706,203.43,203.42,29.20814017]
[1756827029379,8.12583706,203.43,203.42,29.20814017]
[1756827029702,40.08,203.43,203.42,29.20814017]
[1756827030003,48.20583706,203.43,203.42,29.20814017]
[1756827030202,40.08,203.43,203.42,29.23814017]
[1756827031406,8.12583706,203.44,203.42,29.23814017]
[1756827031583,40.08,203.43,203.42,29.23814017]
[1756827032488,48.20583706,203.43,203.42,29.23814017]
[1756827033304,44.99569581,203.43,203.42,29.23814017]
[1756827033507,53.12153287,203.43,203.42,29.23814017]
[1756827034002,48.20583706,203.43,203.42,29.23814017]
[1756827034719,8.12583706,203.44,203.42,29.91814017]
[1756827035002,40.08,203.43,203.42,29.23814017]
[1756827035205,0.71,203.5,203.42,34.15406353]
[1756827035515,8.12583706,203.48,203.43,0.68]
[1756827035703,40.08,203.47,203.44,13.59559401]
[1756827036016,40.08,203.47,203.42,29.23814017]
[1756827036394,40.08,203.47,203.43,0.68]
[1756827036700,4.91450487,203.48,203.43,0.68]
[1756827036894,8.12583706,203.47,203.43,0.68]
[1756827037210,14.77359467,203.53,203.47,13.59559401]
[1756827037383,14.77359467,203.53,203.44,26.42648471]
[1756827037384,22.89943173,203.53,203.48,0.68]
[1756827037591,0.71,203.52,203.46,14.27559401]
[1756827037788,0.71,203.52,203.43,5.59568578]
[1756827038023,8.12583706,203.47,203.43,0.68]
[1756827038230,40.08,203.47,203.43,0.68]
[1756827038726,8.12583706,203.44,203.42,29.23814017]
[1756827038891,8.12583706,203.45,203.43,0.68]
[1756827039092,40.08,203.44,203.43,0.68]
[1756827039401,8.12583706,203.45,203.42,29.23814017]
[1756827039590,40.08,203.45,203.44,0.68]
[1756827039789,40.08,203.46,203.44,0.68]
[1756827040106,8.12583706,203.47,203.45,0.68]
[1756827040309,8.12583706,203.49,203.46,0.68]
[1756827040490,40.08,203.48,203.46,8.80583706]
[1756827040699,40.08,203.48,203.47,0.68]
[1756827040918,8.12583706,203.52,203.47,0.68]
[1756827041101,40.08,203.51,203.48,0.69]
[1756827041298,40.08,203.5,203.47,13.59559401]
[1756827041499,40.08,203.51,203.49,0.69]
[1756827041698,40.08,203.51,203.47,21.72143107]
[1756827041902,40.08,203.51,203.48,0.69]
[1756827042422,40.08,203.51,203.47,13.59559401]
[1756827042619,8.12583706,203.49,203.47,0.69]
[1756827042806,8.12583706,203.49,203.45,13.59559401]
[1756827042992,45.67397157,203.51,203.45,14.28559401]
[1756827043193,8.12583706,203.49,203.45,14.28559401]
[1756827043529,8.12583706,203.46,203.43,13.59559401]
[1756827043739,8.12583706,203.46,203.42,29.92814017]
[1756827043740,8.12583706,203.45,203.42,29.92814017]
[1756827044210,8.12583706,203.44,203.42,29.23814017]
[1756827045008,8.12583706,203.43,203.42,29.23814017]
[1756827045211,8.80583706,203.43,203.42,29.23814017]
[1756827045725,34.80583706,203.43,203.4,0.03]
[1756827046032,4.91617914,203.41,203.4,0.03]
[1756827046332,13.0420162,203.41,203.4,0.03]
[1756827046519,79.7820162,203.41,203.4,0.03]
[1756827046718,39.7220162,203.41,203.4,0.03]
[1756827046921,79.7820162,203.41,203.4,0.03]
[1756827047117,39.7220162,203.41,203.4,0.03]
[1756827047317,79.7820162,203.41,203.4,0.03]
[1756827048006,40.06,203.41,203.4,0.03]
[1756827048208,8.12583706,203.41,203.4,0.03]
[1756827048419,48.18583706,203.41,203.4,0.03]
[1756827048906,30.91523715,203.45,203.4,0.72]
[1756827049107,8.12583706,203.42,203.4,0.72]
[1756827049308,40.06,203.41,203.4,0.03]
[1756827049516,8.12583706,203.42,203.41,0.69]
[1756827049734,48.18583706,203.42,203.41,0.69]
[1756827049930,8.12583706,203.42,203.4,0.03]
[1756827050231,8.12583706,203.44,203.41,0.69]
[1756827050435,8.12583706,203.44,203.4,4.94624799]
[1756827050623,0.06,203.46,203.41,0.69]
[1756827050824,48.18583706,203.45,203.42,0.69]
[1756827051130,48.18583706,203.45,203.4,80.13]
[1756827051335,40.06,203.44,203.41,0.69]
[1756827051520,40.06,203.44,203.42,0.69]
[1756827051838,0.06,203.46,203.43,0.69]
[1756827052128,40.06,203.45,203.44,0.69]
[1756827052431,48.18583706,203.45,203.4,0.03]
[1756827052615,8.12583706,203.44,203.41,0.69]
[1756827052821,40.06,203.45,203.42,0.69]
[1756827053018,40.06,203.45,203.43,0.69]
[1756827053740,48.18583706,203.45,203.4,14.31559401]
[1756827054033,8.12583706,203.43,203.4,0.03]
[1756827054231,8.12583706,203.43,203.4,0.72]
[1756827054439,8.12583706,203.44,203.4,0.72]
[1756827054940,8.12583706,203.41,203.4,0.03]
[1756827055122,56.31167412,203.41,203.4,0.03]
[1756827055324,56.99167412,203.41,203.4,0.03]
[1756827055531,48.86583706,203.41,203.4,0.03]
[1756827056343,61.90785326,203.41,203.4,0.03]
[1756827057629,62.33433797,203.41,203.37,0.03]
[1756827057837,62.33433797,203.41,203.35,0.03]
[1756827057838,34.12583706,203.38,203.35,0.03]
[1756827058141,8.12583706,203.36,203.35,0.03]
[1756827058310,13.04322494,203.36,203.35,0.03]
[1756827058512,13.72322494,203.36,203.35,0.03]
[1756827059908,53.78322494,203.36,203.35,0.03]
[1756827060111,13.72322494,203.36,203.35,0.03]
[1756827060332,53.10322494,203.36,203.35,0.03]
[1756827060613,13.72322494,203.36,203.35,0.03]
[1756827060831,53.78322494,203.36,203.35,0.03]
[1756827061137,59.49276679,203.36,203.35,0.03]
[1756827061331,19.43276679,203.36,203.35,0.03]
[1756827061536,26.0,203.39,203.35,0.03]
[1756827061830,8.12583706,203.36,203.35,0.03]
[1756827062422,53.78322494,203.36,203.35,0.03]
[1756827062625,13.72322494,203.36,203.35,0.03]
[1756827062826,53.78322494,203.36,203.35,0.03]
[1756827063140,26.0,203.33,203.28,0.1]
[1756827063337,8.12583706,203.29,203.28,0.1]
[1756827063646,48.18583706,203.29,203.28,0.1]
[1756827063817,16.93167412,203.29,203.28,0.1]
[1756827064017,56.99167412,203.29,203.28,0.1]
[1756827064445,61.91075523,203.29,203.28,0.1]
[1756827064824,40.06,203.29,203.28,0.1]
[1756827065029,48.86583706,203.29,203.28,0.1]
[1756827065325,56.99167412,203.29,203.27,0.1]
[1756827065523,12.29844651,203.28,203.27,0.1]
[1756827065736,52.35844651,203.28,203.27,0.1]
[1756827066246,53.03844651,203.28,203.27,0.1]
[1756827066423,26.0,203.3,203.27,0.1]
[1756827066631,12.29844651,203.28,203.27,0.1]
[1756827067117,12.97844651,203.28,203.27,0.1]
[1756827067440,25.27689302,203.28,203.27,0.1]
[1756827068027,12.97844651,203.28,203.27,0.1]
[1756827068336,91.62121616,203.28,203.27,0.1]
[1756827068538,96.54053926,203.28,203.27,0.1]
[1756827068743,26.32052523,203.27,203.26,0.1]
[1756827068917,26.0,203.25,203.24,0.1]
[1756827069121,78.64276965,203.25,203.24,0.1]
[1756827069324,79.32276965,203.25,203.24,0.1]
[1756827069520,38.29844651,203.25,203.24,0.1]
[1756827069921,52.35844651,203.25,203.24,0.1]
[1756827070119,12.29844651,203.25,203.24,0.1]
[1756827070348,52.35844651,203.25,203.24,0.1]
[1756827070714,12.29844651,203.25,203.24,0.1]
[1756827071037,52.35844651,203.25,203.24,0.1]
[1756827071344,0.06,203.36,203.25,13.59559401]
[1756827071552,40.06,203.35,203.26,12.98844651]
[1756827071724,12.29844651,203.27,203.24,0.79]
[1756827071921,26.71,203.34,203.24,0.1]
[1756827071922,12.29844651,203.25,203.24,0.1]
[1756827072134,26.0,203.32,203.24,0.1]
[1756827072450,12.29844651,203.29,203.26,4.91980714]
[1756827072626,12.29844651,203.29,203.27,0.69]
[1756827072827,28.68156024,203.35,203.26,4.91980714]
[1756827073144,12.29844651,203.27,203.24,0.1]
[1756827073322,40.06,203.26,203.24,0.1]
[1756827073645,52.35844651,203.25,203.24,0.1]
[1756827073841,53.06844651,203.25,203.24,0.1]
[1756827074346,55.32539942,203.25,203.24,0.1]
[1756827074524,60.24544862,203.25,203.24,0.1]
[1756827075450,46.95267897,203.25,203.24,0.1]
[1756827075744,59.9610282,203.25,203.24,0.1]
[1756827076245,60.24535134,203.25,203.24,0.1]
[1756827077848,60.38751291,203.25,203.24,1e-08]
[1756827078151,26.28432314,203.23,203.22,0.03]
[1756827078329,78.66276965,203.23,203.22,0.03]
[1756827078529,79.37276965,203.23,203.22,0.03]
[1756827078747,84.29330303,203.23,203.22,0.03]
[1756827078934,43.21897989,203.23,203.22,0.03]
[1756827079135,30.9200197,203.26,203.22,0.72]
[1756827079338,4.9193231,203.28,203.22,0.03]
[1756827079535,12.29844651,203.24,203.22,0.03]
[1756827079746,52.37844651,203.23,203.22,0.03]
[1756827079940,52.37844651,203.23,203.22,0.72]
[1756827080246,27.97233796,203.28,203.22,0.72]
[1756827080459,4.91883915,203.3,203.22,0.72]
[1756827080634,12.29844651,203.3,203.23,4.92053338]
[1756827080826,12.29844651,203.3,203.24,0.69]
[1756827080827,12.29844651,203.27,203.24,0.69]
[1756827081022,40.08,203.26,203.24,0.69]
[1756827081228,4.91884592,203.3,203.22,12.32844651]
[1756827081229,40.08,203.25,203.22,4.95076314]
[1756827081531,40.08,203.24,203.22,4.95076314]
[1756827081731,40.08,203.24,203.23,0.69]
[1756827082152,12.29844651,203.27,203.23,0.69]
[1756827082353,12.29844651,203.29,203.24,4.92029128]
[1756827082656,40.08,203.28,203.25,0.69]
[1756827082838,32.52,203.31,203.26,0.69]
[1756827083151,12.29844651,203.28,203.27,0.69]
[1756827083540,12.29844651,203.29,203.27,0.69]
[1756827083837,32.52,203.31,203.27,0.69]
[1756827084045,52.37844651,203.3,203.28,0.69]
[1756827084239,40.08,203.3,203.29,0.69]
[1756827084445,52.37844651,203.3,203.26,0.69]
[1756827084644,52.37844651,203.3,203.23,18.65828896]
[1756827084645,12.29844651,203.27,203.23,18.65828896]
[1756827084847,40.08,203.26,203.24,0.72]
[1756827085048,40.08,203.25,203.24,0.72]
[1756827085255,40.08,203.25,203.24,0.03]
[1756827085926,12.29844651,203.26,203.24,0.72]
[1756827086262,52.37844651,203.25,203.24,0.72]
[1756827086443,40.08,203.25,203.24,0.72]
[1756827086753,52.37844651,203.25,203.24,0.03]
[1756827087283,53.08844651,203.25,203.24,0.03]
[1756827087449,0.71,203.25,203.24,0.03]
[1756827087649,53.37276965,203.25,203.24,0.03]
[1756827087842,18.21281885,203.25,203.24,0.03]
[1756827088042,58.27281885,203.25,203.24,0.03]
[1756827089954,58.29281885,203.25,203.24,0.03]
[1756827090762,26.0,203.23,203.22,0.13]
[1756827090935,0.28432314,203.22,203.21,0.03]
[1756827091136,13.29276965,203.22,203.21,0.03]
[1756827091338,53.37276965,203.22,203.21,0.03]
[1756827091837,58.29354516,203.22,203.21,0.03]
[1756827092233,26.0,203.2,203.18,0.03]
[1756827092437,78.37844651,203.2,203.18,0.03]
[1756827092635,79.37276965,203.2,203.18,0.03]
[1756827092850,78.37844651,203.2,203.18,0.03]
[1756827093052,38.29844651,203.2,203.18,0.03]
[1756827093362,79.37276965,203.2,203.18,0.03]
[1756827093938,84.29402949,203.2,203.18,0.03]
[1756827094846,31.91558298,203.2,203.18,0.03]
[1756827095058,84.29402949,203.2,203.18,0.03]
[1756827095245,44.21402949,203.2,203.18,0.03]
[1756827095584,12.300123,203.25,203.18,0.03]
[1756827095735,12.29844651,203.2,203.18,0.03]
[1756827095936,57.29970635,203.2,203.18,0.03]
[1756827096362,12.29844651,203.2,203.18,0.03]
[1756827096567,52.37844651,203.2,203.19,0.72]
[1756827096740,52.37844651,203.2,203.19,0.03]
[1756827096741,57.29970635,203.2,203.19,0.03]
[1756827097667,12.29844651,203.2,203.19,0.03]
[1756827097870,53.37276965,203.2,203.19,0.03]
[1756827098169,17.21970635,203.2,203.19,0.03]
[1756827098371,12.29844651,203.2,203.19,0.72]
[1756827098577,4.92053338,203.23,203.19,0.72]
[1756827098749,13.00844651,203.2,203.19,0.03]
[1756827098943,53.37276965,203.2,203.19,0.03]
[1756827099677,26.28432314,203.17,203.16,0.03]
[1756827099972,0.42648471,203.16,203.1,0.03]
[1756827100178,12.29844651,203.11,203.1,0.03]
[1756827100362,52.37844651,203.11,203.1,0.03]
[1756827100541,53.08844651,203.11,203.1,0.03]
[1756827100857,52.37844651,203.11,203.1,0.03]
[1756827101062,26.0,203.11,203.1,0.03]
[1756827101243,38.29844651,203.11,203.1,0.03]
[1756827101446,78.37844651,203.11,203.1,0.03]
[1756827101857,52.37844651,203.11,203.1,0.03]
[1756827102059,19.20234922,203.15,203.1,0.75]
[1756827102276,12.29844651,203.11,203.1,0.75]
[1756827102667,12.29844651,203.12,203.11,0.72]
[1756827102968,40.08,203.12,203.11,0.72]
[1756827103675,40.08,203.12,203.1,0.03]
[1756827103676,52.37844651,203.12,203.1,0.03]
[1756827103871,12.29844651,203.11,203.1,0.03]
[1756827104177,17.22188701,203.11,203.1,0.03]
[1756827104548,57.30188701,203.11,203.1,0.03]
[1756827105848,58.30621015,203.11,203.1,0.03]
[1756827106561,17.22188701,203.11,203.1,0.03]
[1756827106777,40.08,203.11,203.1,0.75]
[1756827106945,52.37844651,203.11,203.1,0.75]
[1756827107146,40.08,203.11,203.1,0.75]
[1756827107347,52.37844651,203.11,203.1,0.03]
[1756827107748,52.37844651,203.11,203.1,0.75]
[1756827108348,40.08,203.11,203.1,0.75]
[1756827108578,52.37844651,203.11,203.1,0.75]
[1756827108779,57.30188701,203.11,203.1,0.03]
[1756827108960,52.37844651,203.11,203.1,0.75]
[1756827109482,40.08,203.11,203.1,0.75]
[1756827109787,52.37844651,203.11,203.1,0.75]
[1756827109978,40.08,203.11,203.1,14.34559401]
[1756827110353,12.29844651,203.12,203.1,0.75]
[1756827110685,40.08,203.11,203.1,0.03]
[1756827111060,40.08,203.11,203.1,0.75]
[1756827111259,52.37844651,203.11,203.1,0.75]
[1756827111479,4.92177682,203.18,203.1,5.67368291]
[1756827111666,4.92177682,203.18,203.11,0.72]
[1756827111667,12.29844651,203.13,203.11,0.72]
[1756827111866,40.08,203.12,203.11,0.72]
[1756827112382,40.08,203.12,203.11,19.23903451]
[1756827113281,40.08,203.12,203.11,14.31559401]
[1756827113585,52.37844651,203.12,203.11,0.72]
[1756827113783,40.08,203.12,203.11,0.72]
[1756827114079,52.37844651,203.12,203.11,0.72]
[1756827114303,26.0,203.2,203.11,0.86216157]
[1756827114458,40.08,203.19,203.12,13.59559401]
[1756827114661,12.29844651,203.17,203.13,0.72]
[1756827114862,12.29844651,203.17,203.14,13.59559401]
[1756827115063,40.08,203.16,203.15,0.72]
[1756827115279,12.29844651,203.19,203.15,0.72]
[1756827115475,12.29844651,203.17,203.16,0.72]
[1756827115782,40.08,203.17,203.16,0.72]
[1756827115964,12.35844651,203.21,203.17,13.59559401]
[1756827116160,0.06,203.21,203.19,13.59559401]
[1756827116355,0.06,203.21,203.2,31.67746193]
[1756827116555,21.04,203.21,203.2,31.67746193]
[1756827116755,21.04,203.21,203.2,19.37901542]
[1756827117162,21.04,203.21,203.2,14.45775558]
[1756827117575,0.06,203.21,203.2,14.45775558]
[1756827117970,0.06,203.21,203.2,26.75620209]
[1756827118182,0.06,203.21,203.2,27.04052523]
[1756827118381,0.06,203.21,203.2,31.96178507]
[1756827118599,0.06,203.21,203.2,19.66333856]
[1756827118783,0.06,203.21,203.2,31.96178507]
[1756827120366,0.06,203.24,203.23,44.9426121]
[1756827120566,1e-08,203.24,203.23,44.9426121]
[1756827120771,1e-08,203.24,203.23,57.96105861]
[1756827123193,1e-08,203.26,203.24,14.02207872]
[1756827123502,1e-08,203.26,203.25,26.32052523]
[1756827123678,1e-08,203.26,203.25,107.14052523]
[1756827124389,1e-08,203.26,203.25,152.12057443]
[1756827124898,1e-08,203.26,203.25,86.80144798]
[1756827125280,0.06,203.36,203.29,39.59559401]
[1756827125476,0.06,203.36,203.35,13.73775558]
[1756827126110,0.06,203.36,203.35,12.29844651]
[1756827126307,0.78,203.36,203.34,13.59559401]
[1756827126782,0.06,203.36,203.34,25.89404052]
[1756827127604,0.06,203.36,203.35,8.99568337]
[1756827128702,0.06,203.36,203.35,47.87127738]
[1756827128882,0.06,203.36,203.35,13.59559401]
[1756827129090,0.06,203.36,203.32,4.96351273]
[1756827129289,0.06,203.36,203.33,13.59559401]
[1756827129483,0.06,203.36,203.33,21.72911581]
[1756827129983,0.06,203.36,203.33,13.59559401]
[1756827130190,0.06,203.36,203.33,21.72911581]
[1756827130598,8.8535218,203.35,203.28,26.0]
[1756827130784,8.8535218,203.35,203.3,13.59559401]
[1756827130991,0.72,203.34,203.3,13.59559401]
[1756827131688,8.1335218,203.35,203.3,13.59559401]
[1756827131878,0.06,203.36,203.32,21.72911581]
[1756827132079,0.77,203.36,203.32,21.72911581]
[1756827132280,0.06,203.36,203.32,13.59559401]
[1756827132498,13.82092176,203.36,203.32,13.59559401]
[1756827132810,8.9035218,203.36,203.32,13.59559401]
[1756827132999,0.77,203.36,203.32,13.59559401]
[1756827133301,5.68745066,203.36,203.32,13.59559401]
[1756827133510,13.82097246,203.36,203.32,13.59559401]
[1756827134306,0.06,203.36,203.34,21.72911581]
[1756827134679,0.06,203.36,203.32,13.59559401]
[1756827134885,8.1935218,203.36,203.32,13.59559401]
[1756827135112,13.82092412,203.36,203.32,13.59559401]
[1756827135409,13.82092412,203.36,203.31,21.87127738]
[1756827135612,13.11092412,203.36,203.31,13.59559401]
[1756827135911,13.05139334,203.34,203.29,0.14216157]
[1756827136081,0.71,203.35,203.3,21.72911581]
[1756827136283,0.71,203.35,203.3,22.38911581]
[1756827136485,0.06,203.36,203.34,8.1335218]
[1756827136704,0.06,203.36,203.35,21.72911581]
[1756827137102,0.06,203.36,203.35,22.38911581]
[1756827137280,0.06,203.36,203.35,21.72911581]
[1756827137494,0.06,203.36,203.35,102.63127738]
[1756827137694,0.06,203.36,203.35,107.54890708]
[1756827138200,0.06,203.36,203.35,27.73323022]
[1756827138394,0.06,203.36,203.35,53.73323022]
[1756827138595,0.06,203.36,203.35,27.73323022]
[1756827139891,0.06,203.36,203.35,19.59970842]
[1756827140191,0.06,203.36,203.35,27.73323022]
[1756827140516,0.06,203.36,203.35,19.17322371]
[1756827140717,0.06,203.36,203.35,27.30674551]
[1756827141008,0.06,203.36,203.35,27.44890708]
[1756827141210,0.06,203.36,203.35,27.30674551]
[1756827141511,0.06,203.36,203.35,27.44890708]
[1756827141718,0.06,203.36,203.35,22.53127738]
[1756827142405,0.06,203.36,203.35,27.44890708]
[1756827143308,0.06,203.36,203.35,27.73323022]
[1756827143683,0.06,203.36,203.35,99.69970842]
[1756827143886,0.06,203.36,203.35,107.83323022]
[1756827144317,0.06,203.36,203.35,53.73323022]
[1756827144525,0.06,203.36,203.35,27.73323022]
[1756827147002,0.06,203.36,203.35,13.59559401]
[1756827147192,0.06,203.36,203.35,22.38911581]
[1756827147509,0.06,203.36,203.35,27.73323022]
[1756827148319,0.06,203.36,203.35,53.73323022]
[1756827148512,0.06,203.36,203.35,27.07323022]
[1756827148901,0.06,203.36,203.35,27.73323022]
[1756827149820,0.06,203.36,203.35,107.83323022]
[1756827150121,0.06,203.36,203.35,102.91560052]
[1756827150298,0.06,203.36,203.35,107.83323022]
[1756827151525,0.06,203.39,203.38,14.02207872]
[1756827151815,0.06,203.39,203.38,102.19560052]
[1756827152120,0.06,203.39,203.38,102.85560052]
[1756827152497,0.06,203.39,203.38,102.19560052]
[1756827152823,0.06,203.39,203.38,94.06207872]
[1756827152999,0.06,203.39,203.38,102.19560052]
[1756827153626,0.06,203.39,203.38,107.11250483]
[1756827155223,0.06,203.39,203.38,107.77250483]
[1756827155440,0.06,203.39,203.38,67.73250483]
[1756827155719,0.06,203.39,203.38,22.81560052]
[1756827155927,0.06,203.39,203.38,27.07250483]
[1756827156107,0.06,203.39,203.38,53.07250483]
[1756827157327,0.06,203.39,203.38,48.15560052]
[1756827157530,0.06,203.39,203.38,40.02207872]
[1756827158121,0.06,203.39,203.38,44.93898303]
[1756827158436,0.06,203.39,203.38,53.07250483]
[1756827158606,0.06,203.39,203.38,48.15560052]
[1756827158815,0.77,203.39,203.34,13.59559401]
[1756827159017,0.71,203.38,203.35,0.14216157]
[1756827159336,8.8435218,203.38,203.33,13.59559401]
[1756827159525,0.71,203.37,203.34,0.14216157]
[1756827159914,0.71,203.37,203.33,18.51363238]
[1756827160320,0.06,203.39,203.38,26.0]
[1756827160625,0.06,203.39,203.38,39.59559401]
[1756827160935,0.06,203.39,203.38,13.59559401]
[1756827161334,0.06,203.39,203.38,13.73775558]
[1756827161512,0.06,203.39,203.38,93.83775558]
[1756827162306,8.8535218,203.39,203.37,13.59559401]
[1756827162718,0.72,203.39,203.37,13.59559401]
[1756827162913,0.06,203.39,203.37,13.59559401]
[1756827163617,0.06,203.39,203.38,0.14216157]
[1756827165048,0.06,203.39,203.37,93.69559401]
[1756827165049,0.72,203.39,203.37,93.69559401]
[1756827165347,0.06,203.39,203.37,98.61268114]
[1756827165512,0.06,203.39,203.38,0.84216157]
[1756827165719,0.06,203.39,203.38,8.97568337]
[1756827166043,0.06,203.39,203.38,0.14216157]
[1756827166345,0.06,203.39,203.37,93.69559401]
[1756827166554,0.66,203.38,203.37,93.69559401]
[1756827166933,0.66,203.38,203.37,80.1]
[1756827167130,0.06,203.39,203.37,80.1]
[1756827167518,0.06,203.39,203.35,111.01762674]
[1756827167829,0.06,203.39,203.36,13.73775558]
[1756827168655,0.66,203.38,203.36,13.59559401]
[1756827168952,8.7935218,203.38,203.36,13.59559401]
[1756827169126,8.1335218,203.38,203.35,26.0]
[1756827169451,8.1335218,203.36,203.31,13.87991715]
[1756827169658,8.7935218,203.35,203.32,0.14216157]
[1756827170259,0.66,203.35,203.32,0.14216157]
[1756827170426,8.7935218,203.35,203.32,0.14216157]
[1756827170621,8.1335218,203.36,203.32,0.14216157]
[1756827170938,8.7935218,203.36,203.32,0.14216157]
[1756827171123,0.06,203.39,203.34,0.42648471]
[1756827171326,0.06,203.39,203.36,13.59559401]
[1756827172654,0.06,203.39,203.38,47.87127738]
[1756827172949,0.06,203.39,203.38,53.07250483]
[1756827173144,0.06,203.39,203.38,53.77250483]
[1756827175647,0.06,203.39,203.38,133.87250483]
[1756827175823,0.06,203.39,203.38,132.88818169]
[1756827176137,8.8535218,203.39,203.34,13.62559401]
[1756827176336,8.1335218,203.37,203.34,0.03]
[1756827176527,8.1335218,203.35,203.34,0.03]
[1756827176727,8.7935218,203.36,203.34,0.03]
[1756827177041,8.1335218,203.36,203.34,0.03]
[1756827177554,8.7935218,203.35,203.34,0.03]
[1756827177943,0.66,203.35,203.34,0.03]
[1756827178430,8.1335218,203.36,203.34,0.03]
[1756827178831,8.7935218,203.37,203.34,0.03]
[1756827179025,44.93667781,203.39,203.36,21.72911581]
[1756827179026,0.06,203.39,203.36,21.72911581]
[1756827179648,0.06,203.39,203.38,13.59559401]
[1756827180152,0.06,203.39,203.38,21.87127738]
[1756827180534,0.06,203.39,203.35,13.73775558]
[1756827181054,0.06,203.39,203.35,27.48889407]
[1756827181554,8.1335218,203.36,203.34,0.03]
[1756827181737,8.1335218,203.37,203.34,0.03]
[1756827184139,8.7935218,203.35,203.34,0.03]
[1756827185046,0.66,203.35,203.34,0.03]
[1756827185249,8.1335218,203.35,203.34,0.03]
[1756827185429,5.57700741,203.38,203.34,0.03]
[1756827185430,48.0935218,203.36,203.34,0.03]
[1756827185634,8.1335218,203.36,203.34,0.03]
[1756827185834,0.06,203.39,203.34,0.03]
[1756827185835,8.1935218,203.39,203.34,0.73]
[1756827186146,40.02,203.39,203.34,8.8635218]